fUST/lending_fUST_20240727
["ID","MTS","AMOUNT","RATE_DAILY","PERIOD"]
[333368600,1722075054137,-151.0,0.00015342,2]
[333368601,1722075054147,-714.09,0.00015342,2]
[333368602,1722075054157,-1085.31,0.00015342,2]
[333368603,1722075054167,-1080.39,0.00015342,2]
[333368604,1722075054177,-500.0,0.00015342,2]
[333368605,1722075054189,-500.0,0.00015342,2]
[333368606,1722075054200,-879.1,0.00015342,2]
[333368607,1722075054211,-267.081974,0.00015342,2]
[333368608,1722075054223,-267.081974,0.00015342,2]
[333368609,1722075054233,-339.271234,0.00015342,2]
[333368610,1722075054243,-1751.88,0.00015342,2]
[333368611,1722075054253,-1385.03,0.00015342,2]
[333368612,1722075054263,-339.271234,0.00015342,2]
[333368613,1722075054273,-1796.01,0.00015342,2]
[333368614,1722075054283,-656.36,0.00015342,2]
[333368615,1722075054293,-229.152788,0.00015342,2]
[333368616,1722075054303,-742.6,0.00015342,2]
[333368617,1722075054312,-1185.24,0.00015342,2]
[333368618,1722075054322,-2214.71,0.00015342,2]
[333368619,1722075054331,-620.26,0.00015342,2]
[333368620,1722075054341,-2657.5,0.00015342,2]
[333368621,1722075054350,-500.0,0.00015342,2]
[333368622,1722075054359,-151.0,0.00015342,2]
[333368623,1722075054370,-500.0,0.00015342,2]
[333368624,1722075054380,-151.0,0.00015342,2]
[333368625,1722075054390,-1646.35,0.00015342,2]
[333368626,1722075054400,-150.112233,0.000154,2]
[333368627,1722075054409,-390.5792032,0.00015459,2]
[333368628,1722075054420,-1000.0,0.000155,2]
[333368629,1722075054434,-153.94863244,0.00015532,2]
[333368630,1722075054444,-156.0,0.0001554,2]
[333368631,1722075054454,-150.112233,0.000156,2]
[333368632,1722075054466,-736.93,0.00015616,2]
[333368633,1722075054476,-151.0,0.00015616,2]
[333368634,1722075054486,-171.451838,0.00015616,2]
[333368635,1722075054499,-500.0,0.00015616,2]
[333368636,1722075054510,-664.43,0.00015616,2]
[333368637,1722075054521,-1156.56,0.00015616,2]
[333368638,1722075054532,-500.0,0.00015616,2]
[333368639,1722075054542,-500.0,0.00015616,2]
[333368640,1722075054553,-500.0,0.00015616,2]
[333368641,1722075054563,-579.98,0.00015616,2]
[333368642,1722075054574,-500.0,0.00015616,2]
[333368643,1722075054583,-598.78,0.00015616,2]
[333368644,1722075054592,-619.23,0.00015616,2]
[333368645,1722075054602,-733.76,0.00015616,2]
[333368646,1722075054611,-151.0,0.00015616,2]
[333368647,1722075054620,-500.0,0.00015616,2]
[333368648,1722075054629,-500.0,0.00015616,2]
[333368649,1722075054638,-500.0,0.00015616,2]
[333368650,1722075054650,-929.95,0.00015616,2]
[333368651,1722075054660,-1016.99,0.00015616,2]
[333368652,1722075054669,-792.56,0.00015616,2]
[333368653,1722075054678,-151.0,0.00015616,2]
[333368654,1722075054688,-500.0,0.00015616,2]
[333368655,1722075054697,-1166.75,0.00015616,2]
[333368656,1722075054706,-908.42,0.00015616,2]
[333368657,1722075054718,-590.84,0.00015616,2]
[333368658,1722075054729,-500.0,0.00015616,2]
[333368659,1722075054742,-151.0,0.00015616,2]
[333368660,1722075054753,-594.61,0.00015616,2]
[333368661,1722075054764,-500.0,0.00015616,2]
[333368662,1722075054774,-500.0,0.00015616,2]
[333368663,1722075054785,-500.0,0.00015616,2]
[333368664,1722075054796,-877.06,0.00015616,2]
[333368665,1722075054805,-4384.68,0.00015616,2]
[333368666,1722075054815,-1285.58,0.00015616,2]
[333368667,1722075054826,-928.85,0.00015616,2]
[333368668,1722075054836,-1072.14,0.00015616,2]
[333368669,1722075054848,-1918.81,0.00015616,2]
[333368670,1722075054858,-500.0,0.00015616,2]
[333368671,1722075054868,-500.0,0.00015616,2]
[333368672,1722075054877,-1603.87,0.00015616,2]
[333368673,1722075054887,-541.25,0.00015616,2]
[333368674,1722075054896,-500.0,0.00015616,2]
[333368675,1722075054906,-6917.34,0.00015616,2]
[333368676,1722075054915,-500.0,0.00015616,2]
[333368677,1722075054924,-500.0,0.00015616,2]
[333368678,1722075054934,-3168.04,0.00015616,2]
[333368679,1722075054943,-1064.65,0.00015616,2]
[333368680,1722075054954,-500.0,0.00015616,2]
[333368681,1722075054963,-1430.94,0.00015616,2]
[333368682,1722075054973,-2202.23,0.00015616,2]
[333368683,1722075054982,-640.32,0.00015616,2]
[333368684,1722075054992,-1833.72,0.00015616,2]
[333368685,1722075055001,-786.3,0.00015616,2]
[333368686,1722075055011,-500.0,0.00015616,2]
[333368687,1722075055021,-716.42,0.00015616,2]
[333368688,1722075055030,-500.0,0.00015616,2]
[333368689,1722075055040,-500.0,0.00015616,2]
[333368690,1722075055049,-611.75,0.00015616,2]
[333368691,1722075055059,-1350.04,0.00015616,2]
[333368692,1722075055068,-500.0,0.00015616,2]
[333368693,1722075055079,-1512.56,0.00015616,2]
[333368694,1722075055089,-652.09,0.00015616,2]
[333368695,1722075055098,-809.85,0.00015616,2]
[333368696,1722075055107,-404.91163277,0.00015616,2]
[333368697,1722075055118,-618.71,0.00015616,2]
[333368698,1722075055128,-981.28,0.00015616,2]
[333368699,1722075055139,-2141.38,0.00015616,2]
[333368700,1722075055149,-522.09,0.00015616,2]
[333368701,1722075055160,-1299.52,0.00015616,2]
[333368702,1722075055169,-894.06,0.00015616,2]
[333368703,1722075055179,-1018.98,0.00015616,2]
[333368704,1722075055188,-728.95,0.00015616,2]
[333368705,1722075055198,-714.09,0.00015616,2]
[333368706,1722075055207,-1085.31,0.00015616,2]
[333368707,1722075055218,-1080.39,0.00015616,2]
[333368708,1722075055228,-500.0,0.00015616,2]
[333368709,1722075055238,-500.0,0.00015616,2]
[333368710,1722075055247,-879.1,0.00015616,2]
[333368711,1722075055258,-1751.88,0.00015616,2]
[333368712,1722075055269,-1385.03,0.00015616,2]
[333368713,1722075055279,-1796.01,0.00015616,2]
[333368714,1722075055393,-656.36,0.00015616,2]
[333368715,1722075055402,-742.6,0.00015616,2]
[333368716,1722075055412,-1185.24,0.00015616,2]
[333368717,1722075055425,-2214.71,0.00015616,2]
[333368718,1722075055435,-620.26,0.00015616,2]
[333368719,1722075055446,-2657.5,0.00015616,2]
[333368720,1722075055456,-608.42825912,0.00015616,2]
[333368721,1722075055468,-500.0,0.00015616,2]
[333368722,1722075055478,-1646.35,0.00015616,2]
[333368723,1722075055488,-200.0,0.00015664,2]
[333368724,1722075055498,-78791.61527192,0.000157,2]
[333368725,1722075056474,-38.60312584,0.00013972,2]
[333368726,1722075056822,-11588.10689965,0.00012789,2]
[333368727,1722075056831,-11588.10689964,0.00012817,2]
[333368728,1722075056841,-11588.10689964,0.00012844,2]
[333368729,1722075056850,-637.38063502,0.00013698,2]
[333368730,1722075056860,-112.39687416,0.00013972,2]
[333368731,1722075056868,-151.0,0.00014246,2]
[333368732,1722075056878,-151.0,0.00014794,2]
[333368733,1722075056887,-678.24,0.00015068,2]
[333368734,1722075056897,-678.24,0.00015342,2]
[333368735,1722075056906,-678.24,0.00015616,2]
[333368736,1722075056915,-600599.57306045,0.000157,2]
[333368737,1722075056927,-35968.77835597,0.000157,2]
[333368738,1722075057011,-1849.63187857,0.000157,2]
[333368739,1722075057222,-11588.10689964,0.00012872,2]
[333368740,1722075057231,-2000.0,0.00012888,2]
[333368741,1722075057241,-500.0,0.00013698,2]
[333368742,1722075057250,-500.0,0.00013698,2]
[333368743,1722075057260,-500.0,0.00013698,2]
[333368744,1722075057270,-500.0,0.00013698,2]
[333368745,1722075057279,-500.0,0.00013698,2]
[333368746,1722075057289,-500.0,0.00013698,2]
[333368747,1722075057298,-500.0,0.00013698,2]
[333368748,1722075057307,-500.0,0.00013698,2]
[333368749,1722075057317,-246.02,0.00013972,2]
[333368750,1722075057328,-151.0,0.00013972,2]
[333368751,1722075057337,-155291.11929836,0.000157,2]
[333368752,1722075057347,-151.0,0.000157,2]
[333368753,1722075057356,-288.0,0.000157,2]
[333368754,1722075057365,-151.0,0.000157,2]
[333368755,1722075057374,-151.0,0.000157,2]
[333368756,1722075057384,-151.0,0.000157,2]
[333368757,1722075057393,-151.0,0.000157,2]
[333368758,1722075057403,-191.919579,0.000157,2]
[333368759,1722075057413,-151.0,0.000157,2]
[333368760,1722075057425,-305.360739,0.000157,6]
[333368761,1722075057435,-151.0,0.000157,2]
[333368762,1722075057444,-151.0,0.000157,2]
[333368763,1722075057454,-151.0,0.000157,2]
[333368764,1722075057463,-151.0,0.000157,2]
[333368765,1722075057472,-179.607442,0.000157,2]
[333368766,1722075057481,-179.607442,0.000157,2]
[333368767,1722075057491,-415.40742,0.000157,2]
[333368768,1722075057502,-415.40742,0.000157,2]
[333368769,1722075057512,-152.228824,0.000157,2]
[333368770,1722075057522,-538.072234,0.000157,2]
[333368771,1722075057532,-152.228824,0.000157,2]
[333368772,1722075057541,-538.072234,0.000157,2]
[333368773,1722075057551,-923.059716,0.000157,2]
[333368774,1722075057560,-923.059716,0.000157,2]
[333368775,1722075057570,-151.0,0.000157,2]
[333368776,1722075057580,-267.081974,0.000157,2]
[333368777,1722075057590,-267.081974,0.000157,2]
[333368778,1722075057600,-339.271234,0.000157,2]
[333368779,1722075057610,-339.271234,0.000157,2]
[333368780,1722075057619,-151.0,0.000157,2]
[333368781,1722075057629,-176.710719,0.000157,2]
[333368782,1722075057638,-1843.67125832,0.00015707,2]
[333368783,1722075057647,-294.0187007,0.00015708,2]
[333368784,1722075057656,-306.0,0.00015708,2]
[333368785,1722075057666,-25642.28037015,0.00015708,2]
[333368786,1722075065415,273.37336231,9.9e-05,2]
[333368789,1722075073451,273.37336231,9.9e-05,2]
[333368822,1722075081387,273.37336231,9.9e-05,2]
[333368823,1722075089874,273.37336231,9.9e-05,2]
[333368824,1722075098633,273.37336231,9.9e-05,2]
[333368825,1722075107235,273.37336231,9.9e-05,2]
[333368826,1722075116002,273.37336231,9.9e-05,2]
[333368827,1722075124521,273.37336231,9.9e-05,2]
[333368828,1722075132583,273.37336231,9.9e-05,2]
[333368829,1722075140543,273.37336231,9.9e-05,2]
[333368830,1722075150527,273.37336231,9.9e-05,2]
[333368831,1722075158409,273.37336231,9.9e-05,2]
[333368832,1722075168943,273.37336231,9.9e-05,2]
[333368833,1722075177453,273.37336231,9.9e-05,2]
[333368834,1722075183649,15777.15622902,9.9e-05,2]
[333368835,1722075185558,273.37336231,9.9e-05,2]
[333368836,1722075193485,223.00556114,9.9e-05,2]
[333368837,1722075195113,596.18360246,9.9e-05,2]
[333368838,1722075207619,542.54638972,9.9e-05,2]
[333368839,1722075209149,157.53942382,9.9e-05,2]
[333368840,1722075210395,160.02952721,9.9e-05,2]
[333368841,1722075211777,4707.01308214,9.9e-05,2]
[333368842,1722075214608,3781.31705909,9.9e-05,2]
[333368843,1722075224498,332.52574791,9.999e-05,2]
[333368844,1722075234329,214.11874215,9.999e-05,2]
[333368845,1722075234462,209.63850314,9.999e-05,2]
[333368848,1722075282209,154.71377951,9.999e-05,2]
[333368849,1722075331614,155.6203917,9.999e-05,2]
[333368850,1722075497053,10000.0,0.00020827,60]
[333368853,1722075949153,-169.25670547,0.00010959,2]
[333368854,1722076034137,-142.35329453,0.00010959,2]
[333368855,1722076034163,-120.81747364,0.00010959,2]
[333368856,1722076036102,-195.44252636,0.00010959,2]
[333368857,1722076036128,-300.0,0.00011511,2]
[333368858,1722076036157,-169.75099841,0.00011512,2]
[333368859,1722076039108,-2937.27147322,0.00011512,2]
[333368860,1722076040099,9872.57,0.0001,2]
[333368864,1722076148151,-437.63,0.00010959,2]
[333368865,1722076148174,-300.0,0.00011511,2]
[333368866,1722076148195,-300.0,0.00011511,2]
[333368867,1722076148218,-21792.97752837,0.00011512,2]
[333368868,1722076148244,-250.0,0.00011582,2]
[333368869,1722076148266,-171.573345,0.00011657,2]
[333368870,1722076148288,-171.573345,0.00011743,2]
[333368871,1722076148310,-171.573345,0.0001183,2]
[333368872,1722076148332,-171.573345,0.00011917,2]
[333368873,1722076148354,-602.99397156,0.00012,2]
[333368874,1722076148374,-602.99397156,0.00012,2]
[333368875,1722076148412,-171.573345,0.00012004,2]
[333368876,1722076148440,-171.573345,0.0001209,2]
[333368877,1722076148467,-171.573345,0.00012177,2]
[333368878,1722076148491,-171.573345,0.00012264,2]
[333368880,1722076214004,17284.70789372,0.00012264,2]
[333368881,1722076214026,194.01007822,0.00012264,2]
[333368882,1722076214048,250.0,0.00012264,2]
[333368924,1722076232638,-7893.95664435,0.00012264,2]
[333368931,1722076238474,-2991.22282,0.00012264,2]
[333368932,1722076238487,-100249.73152961,0.00012264,2]
[333368933,1722076238499,-2619.33927348,0.000124,2]
[333368934,1722076238511,-1854.19053923,0.000125,2]
[333368935,1722076238524,-2000.0,0.00012899,2]
[333368936,1722076238537,-300.0,0.00012988,2]
[333368937,1722076238549,-300.0,0.00012988,2]
[333368938,1722076238561,-191914.089346,0.00012989,2]
[333368939,1722076238574,-187449.240941,0.00012999,2]
[333368940,1722076238584,-1908.80801578,0.00013,2]
[333368941,1722076238596,-154.68290005,0.00013,2]
[333368942,1722076238607,-1565.81410056,0.00013,2]
[333368943,1722076238618,-150.112233,0.00013,2]
[333368944,1722076238631,-150.112233,0.000131,2]
[333368945,1722076238642,-335.41648324,0.000132,2]
[333368946,1722076238654,-150.112233,0.000132,2]
[333368947,1722076238666,-150.112233,0.000134,2]
[333368948,1722076238677,-161.729628,0.00013425,2]
[333368949,1722076238688,-150.112233,0.000135,2]
[333368950,1722076238699,-7890.06790377,0.000135,2]
[333368951,1722076238711,-181.477012,0.00013548,2]
[333368952,1722076238724,-171.51465,0.00013548,2]
[333368953,1722076238736,-81070.81974983,0.00013578,5]
[333368954,1722076238748,-127942.726231,0.00013578,2]
[333368955,1722076238760,-1671.09090356,0.00013588,2]
[333368956,1722076238771,-88888.0,0.00013588,2]
[333368957,1722076238782,-1011.39369225,0.000136,2]
[333368958,1722076238792,-150.112233,0.000136,2]
[333368959,1722076238803,-21497.62069665,0.000136,2]
[333368960,1722076238814,-1817.12572833,0.000136,2]
[333368961,1722076238826,-75830.42032617,0.00013686,2]
[333368962,1722076239334,-3568.42553446,0.00013686,2]
[333368982,1722076240571,-2619.33927346,0.00012525,2]
[333368983,1722076240580,-49449.02510828,0.00013686,2]
[333368984,1722076240592,-1000.0,0.00013688,7]
[333368985,1722076240601,-500.0,0.00013698,2]
[333368986,1722076240610,-500.0,0.00013698,2]
[333368987,1722076240620,-500.0,0.00013698,2]
[333368988,1722076240629,-500.0,0.00013698,2]
[333368989,1722076240638,-500.0,0.00013698,2]
[333368990,1722076240648,-500.0,0.00013698,2]
[333368991,1722076240658,-500.0,0.00013698,2]
[333368992,1722076240669,-500.0,0.00013698,2]
[333368993,1722076240679,-500.0,0.00013698,2]
[333368994,1722076240690,-500.0,0.00013698,2]
[333368995,1722076240701,-228.71328731,0.00013698,2]
[333368997,1722076240712,-500.0,0.00013698,2]
[333368999,1722076240722,-500.22635326,0.00013698,2]
[333369001,1722076240732,-500.0,0.00013698,2]
[333369002,1722076240743,-500.0,0.00013698,2]
[333369003,1722076240754,-500.0,0.00013698,2]
[333369004,1722076240765,-500.0,0.00013698,2]
[333369005,1722076240774,-500.0,0.00013698,2]
[333369006,1722076240784,-500.0,0.00013698,2]
[333369007,1722076240794,-500.0,0.00013698,2]
[333369008,1722076240803,-500.0,0.00013698,2]
[333369009,1722076240813,-500.0,0.00013698,2]
[333369010,1722076240824,-500.0,0.00013698,2]
[333369011,1722076240834,-500.0,0.00013698,2]
[333369012,1722076240845,-501.99856816,0.00013698,2]
[333369013,1722076240854,-501.20994446,0.00013698,2]
[333369014,1722076240863,-500.0,0.00013698,2]
[333369015,1722076240872,-500.0,0.00013698,2]
[333369016,1722076240882,-500.0,0.00013698,2]
[333369017,1722076240892,-500.0,0.00013698,2]
[333369018,1722076240901,-500.0,0.00013698,2]
[333369019,1722076240911,-500.0,0.00013698,2]
[333369020,1722076240920,-500.0,0.00013698,2]
[333369021,1722076240930,-500.90753046,0.00013698,2]
[333369022,1722076240939,-500.0,0.00013698,2]
[333369023,1722076240948,-503.79320357,0.00013698,2]
[333369024,1722076240957,-500.0,0.00013698,2]
[333369025,1722076240966,-500.0,0.00013698,2]
[333369026,1722076240975,-500.0,0.00013698,2]
[333369027,1722076240985,-419.96502977,0.00013698,2]
[333369028,1722076240995,-500.0,0.00013698,2]
[333369029,1722076241004,-500.0,0.00013698,2]
[333369030,1722076241014,-500.0,0.00013698,2]
[333369031,1722076241023,-500.0,0.00013698,2]
[333369032,1722076241033,-500.0,0.00013698,2]
[333369033,1722076241042,-150.0,0.00013698,2]
[333369034,1722076241052,-500.0,0.00013698,2]
[333369035,1722076241061,-500.0,0.00013698,2]
[333369036,1722076241072,-500.0,0.00013698,2]
[333369037,1722076241081,-170.3200768,0.00013698,2]
[333369038,1722076241092,-523.37304245,0.00013698,2]
[333369039,1722076241104,-500.0,0.00013698,2]
[333369040,1722076241113,-504.3886552,0.00013698,2]
[333369041,1722076241122,-500.0,0.00013698,2]
[333369042,1722076241131,-500.0,0.00013698,2]
[333369043,1722076241143,-500.0,0.00013698,2]
[333369044,1722076241152,-500.0,0.00013698,2]
[333369045,1722076241161,-500.0,0.00013698,2]
[333369046,1722076241171,-500.0,0.00013698,2]
[333369047,1722076241182,-504.44928973,0.00013698,2]
[333369048,1722076241192,-504.0084634,0.00013698,2]
[333369049,1722076241202,-500.0,0.00013698,2]
[333369050,1722076241211,-500.0,0.00013698,2]
[333369051,1722076241220,-565.89448725,0.00013698,2]
[333369052,1722076241229,-500.0,0.00013698,2]
[333369053,1722076241239,-500.0,0.00013698,2]
[333369054,1722076241248,-500.0,0.00013698,2]
[333369055,1722076241257,-500.0,0.00013698,2]
[333369056,1722076241267,-500.0,0.00013698,2]
[333369057,1722076241276,-500.0,0.00013698,2]
[333369058,1722076241285,-500.0,0.00013698,2]
[333369059,1722076241295,-453.10003359,0.00013698,2]
[333369060,1722076241305,-500.0,0.00013698,2]
[333369061,1722076241315,-349.09049593,0.00013698,2]
[333369062,1722076241326,-500.0,0.00013698,2]
[333369063,1722076241335,-502.43092249,0.00013698,2]
[333369064,1722076241345,-500.0,0.00013698,2]
[333369065,1722076241354,-500.0,0.00013698,2]
[333369066,1722076241364,-500.0,0.00013698,2]
[333369067,1722076241373,-500.0,0.00013698,2]
[333369068,1722076241383,-500.0,0.00013698,2]
[333369069,1722076241392,-500.0,0.00013698,2]
[333369070,1722076241402,-719.17,0.00013698,2]
[333369071,1722076241411,-500.0,0.00013698,2]
[333369072,1722076241421,-500.0,0.00013698,2]
[333369073,1722076241430,-500.0,0.00013698,2]
[333369074,1722076241440,-500.0,0.00013698,2]
[333369075,1722076241450,-500.0,0.00013698,2]
[333369076,1722076241460,-500.0,0.00013698,2]
[333369077,1722076241469,-500.0,0.00013698,2]
[333369078,1722076241479,-500.0,0.00013698,2]
[333369079,1722076241488,-500.0,0.00013698,2]
[333369080,1722076241497,-500.0,0.00013698,2]
[333369081,1722076241506,-500.0,0.00013698,2]
[333369082,1722076241515,-500.0,0.00013698,2]
[333369083,1722076241524,-500.0,0.00013698,2]
[333369084,1722076241534,-500.0,0.00013698,2]
[333369085,1722076241543,-536.94,0.00013698,2]
[333369086,1722076241552,-500.0,0.00013698,2]
[333369087,1722076241561,-500.0,0.00013698,2]
[333369088,1722076241571,-500.0,0.00013698,2]
[333369089,1722076241580,-500.0,0.00013698,2]
[333369090,1722076241590,-500.0,0.00013698,2]
[333369091,1722076241599,-500.0,0.00013698,2]
[333369092,1722076241609,-500.0,0.00013698,2]
[333369093,1722076241619,-500.0,0.00013698,2]
[333369094,1722076241628,-500.0,0.00013698,2]
[333369095,1722076241638,-500.0,0.00013698,2]
[333369096,1722076241647,-500.0,0.00013698,2]
[333369097,1722076241657,-500.0,0.00013698,2]
[333369098,1722076241666,-500.0,0.00013698,2]
[333369099,1722076241675,-500.0,0.00013698,2]
[333369100,1722076241685,-440.54186579,0.00013698,2]
[333369101,1722076241695,-536.86,0.00013698,2]
[333369102,1722076241704,-645.77,0.00013698,2]
[333369103,1722076241713,-500.0,0.00013698,2]
[333369104,1722076241722,-500.0,0.00013698,2]
[333369105,1722076241731,-500.0,0.00013698,2]
[333369106,1722076241740,-500.0,0.00013698,2]
[333369107,1722076241749,-500.0,0.00013698,2]
[333369108,1722076241759,-774.96,0.00013698,2]
[333369109,1722076241768,-500.0,0.00013698,2]
[333369110,1722076241778,-500.0,0.00013698,2]
[333369111,1722076241788,-500.0,0.00013698,2]
[333369112,1722076241797,-500.0,0.00013698,2]
[333369113,1722076241806,-500.0,0.00013698,2]
[333369114,1722076241815,-500.0,0.00013698,2]
[333369115,1722076241825,-500.0,0.00013698,2]
[333369116,1722076241834,-500.0,0.00013698,2]
[333369117,1722076241844,-500.0,0.00013698,2]
[333369118,1722076241853,-847.49,0.00013698,2]
[333369119,1722076241862,-323.24111165,0.00013698,2]
[333369120,1722076241871,-500.0,0.00013698,2]
[333369121,1722076241881,-514.9231913,0.00013698,2]
[333369122,1722076241890,-500.0,0.00013698,2]
[333369123,1722076241899,-303.95111638,0.00013698,2]
[333369124,1722076241908,-500.0,0.00013698,2]
[333369125,1722076241917,-512.77449406,0.00013698,2]
[333369126,1722076241927,-501.93976237,0.00013698,2]
[333369127,1722076241936,-500.0,0.00013698,2]
[333369128,1722076241946,-500.0,0.00013698,2]
[333369129,1722076241955,-500.0,0.00013698,2]
[333369130,1722076241964,-500.0,0.00013698,2]
[333369131,1722076241973,-500.0,0.00013698,2]
[333369132,1722076241983,-321.84490936,0.00013698,2]
[333369133,1722076241993,-500.0,0.00013698,2]
[333369134,1722076242002,-660.46,0.00013698,2]
[333369135,1722076242011,-500.0,0.00013698,2]
[333369136,1722076242020,-500.0,0.00013698,2]
[333369137,1722076242030,-500.0,0.00013698,2]
[333369138,1722076242039,-500.0,0.00013698,2]
[333369139,1722076242048,-500.0,0.00013698,2]
[333369140,1722076242057,-500.0,0.00013698,2]
[333369141,1722076242067,-500.0,0.00013698,2]
[333369142,1722076242077,-500.0,0.00013698,2]
[333369143,1722076242087,-972.3,0.00013698,2]
[333369144,1722076242100,-438.32633923,0.00013698,2]
[333369145,1722076242110,-500.0,0.00013698,2]
[333369146,1722076242120,-429.45514898,0.00013698,2]
[333369147,1722076242131,-500.0,0.00013698,2]
[333369148,1722076242142,-500.0,0.00013698,2]
[333369149,1722076242152,-637.38063502,0.00013698,2]
[333369150,1722076242162,-500.0,0.00013698,2]
[333369151,1722076242173,-500.0,0.00013698,2]
[333369152,1722076242183,-500.0,0.00013698,2]
[333369153,1722076242192,-505.16021393,0.00013698,2]
[333369154,1722076242203,-500.0,0.00013698,2]
[333369155,1722076242215,-500.0,0.00013698,2]
[333369156,1722076242227,-500.0,0.00013698,2]
[333369157,1722076242238,-500.0,0.00013698,2]
[333369158,1722076242249,-500.0,0.00013698,2]
[333369159,1722076242261,-500.0,0.00013698,2]
[333369160,1722076242271,-500.0,0.00013698,2]
[333369161,1722076242280,-500.0,0.00013698,2]
[333369162,1722076242289,-500.0,0.00013698,2]
[333369163,1722076242299,-500.0,0.00013698,2]
[333369164,1722076242309,-500.0,0.00013698,2]
[333369165,1722076242319,-500.0,0.00013698,2]
[333369166,1722076242329,-500.0,0.00013698,2]
[333369167,1722076242338,-500.0,0.00013698,2]
[333369168,1722076242348,-307.51833822,0.00013698,2]
[333369169,1722076242357,-506.81313557,0.00013698,2]
[333369170,1722076242367,-500.0,0.00013698,2]
[333369171,1722076242376,-500.0,0.00013698,2]
[333369172,1722076242387,-641.14884925,0.00013698,2]
[333369173,1722076242397,-500.0,0.00013698,2]
[333369174,1722076242407,-1071.32,0.00013698,2]
[333369175,1722076242418,-500.0,0.00013698,2]
[333369176,1722076242430,-500.0,0.00013698,2]
[333369177,1722076242442,-500.0,0.00013698,2]
[333369178,1722076242455,-500.0,0.00013698,2]
[333369179,1722076242465,-679.68,0.00013698,2]
[333369180,1722076242475,-502.11820702,0.00013698,2]
[333369181,1722076242486,-500.0,0.00013698,2]
[333369182,1722076242498,-1371.96,0.00013698,2]
[333369183,1722076242510,-1599.01,0.00013698,2]
[333369184,1722076242521,-500.0,0.00013698,2]
[333369185,1722076242532,-500.0,0.00013698,2]
[333369186,1722076242543,-3653.9,0.00013698,2]
[333369187,1722076242556,-500.0,0.00013698,2]
[333369188,1722076242567,-1336.56,0.00013698,2]
[333369189,1722076242578,-500.0,0.00013698,2]
[333369190,1722076242587,-500.0,0.00013698,2]
[333369191,1722076242596,-500.0,0.00013698,2]
[333369192,1722076242606,-500.0,0.00013698,2]
[333369193,1722076242618,-500.0,0.00013698,2]
[333369194,1722076242629,-500.0,0.00013698,2]
[333369195,1722076242642,-500.0,0.00013698,2]
[333369196,1722076242653,-807.87,0.00013698,2]
[333369197,1722076242663,-500.0,0.00013698,2]
[333369198,1722076242673,-887.21,0.00013698,2]
[333369199,1722076242682,-500.0,0.00013698,2]
[333369200,1722076242691,-500.0,0.00013698,2]
[333369201,1722076242701,-500.0,0.00013698,2]
[333369202,1722076242710,-500.0,0.00013698,2]
[333369203,1722076242719,-500.0,0.00013698,2]
[333369204,1722076242728,-500.0,0.00013698,2]
[333369205,1722076242738,-500.0,0.00013698,2]
[333369206,1722076242748,-923.01,0.00013698,2]
[333369207,1722076242757,-1914.3,0.00013698,2]
[333369208,1722076242766,-500.0,0.00013698,2]
[333369209,1722076242777,-500.0,0.00013698,2]
[333369210,1722076242788,-500.0,0.00013698,2]